[Event "I Liga Centralne Srbije"]
[Site "Bajina Bašta, Serbia"]
[Date "2020.10.10"]
[Round "1.1"]
[White "Dimitrov, Radoslav"]
[Black "Ivic, Velimir"]
[Result "1/2-1/2"]
[ECO "A28"]
[WhiteElo "2507"]
[BlackElo "2548"]
[Annotator "Knez"]
[PlyCount "73"]
[EventDate "2020.??.??"]
[TimeControl "90"]

1. c4 {[%emt 2:15:40]} e5 {[%emt 0:01:21]} 2. Nc3 {[%emt 0:00:47]} Nf6 {
[%emt 0:01:03]} 3. Nf3 {[%emt 0:00:20]} Nc6 {[%emt 0:00:12]} 4. d4 {[%emt 0:00:
03]} exd4 {[%emt 0:01:20]} 5. Nxd4 {[%emt 0:00:03]} Bb4 {[%emt 0:00:40]} 6. g3
{[%emt 0:00:02]} Bxc3+ {[%emt 0:01:19]} 7. bxc3 {[%emt 0:00:03]} Na5 {[%emt 0:
00:22]} 8. e3 {[%emt 0:04:36]} O-O {[%emt 0:03:06]} 9. Nb3 {[%emt 0:11:24]} Nc6
{[%emt 0:00:49]} 10. Be2 {[%emt 0:00:07]} d6 {[%emt 0:01:21]} 11. O-O {[%emt 0:
00:44]} a5 {[%emt 0:19:58]} 12. f3 {[%emt 0:00:38]} a4 {[%emt 0:00:33]} 13. Nd4
{[%emt 0:01:19]} Nd7 {[%emt 0:08:32]} 14. e4 {[%emt 0:02:21]} Na5 {[%emt 0:09:
25]} 15. Nb5 {[%emt 0:10:38]} b6 {[%emt 0:13:49]} 16. Qxa4 {[%emt 0:07:07]} Nc5
{[%emt 0:04:16]} 17. Qd1 {[%emt 0:01:20]} Nab3 {[%emt 0:02:32]} 18. Bg5 {
[%emt 0:00:19]} Qxg5 {[%emt 0:03:34]} 19. axb3 {[%emt 0:00:03]} Rxa1 20. Qxa1
Nxb3 21. Qa3 {[%emt 0:19:03]} Qe3+ 22. Rf2 Nc1 {[%emt 0:00:23]} 23. Bf1 {
[%emt 0:19:48]} Qe1 {[%emt 0:01:37]} 24. Kg2 {[%emt 0:00:41]} Bh3+ {[%emt 0:13:
56]} 25. Kxh3 {[%emt 0:00:20]} Qxf2 {[%emt 0:00:04]} 26. Qxc1 {[%emt 0:00:05]}
f5 {[%emt 0:00:04]} 27. Nd4 {[%emt 0:18:00]} fxe4 {[%emt 0:00:32]} 28. c5 {
[%emt 0:00:01]} bxc5 {[%emt 0:01:38]} 29. Bc4+ {[%emt 0:02:34]} Kh8 {[%emt 0:
00:02]} 30. Ne6 {[%emt 0:00:09]} Rf6 {[%emt 0:02:40]} 31. Ng5 {[%emt 0:00:03]}
Rh6+ {[%emt 0:00:26]} 32. Kg4 {[%emt 0:00:02]} Rg6 {[%emt 0:00:07]} 33. Kh3 {
[%emt 0:02:37]} Rh6+ {[%emt 0:00:06]} 34. Kg4 {[%emt 0:00:04]} Rg6 {[%emt 0:00:
05]} 35. Kh3 {[%emt 0:00:48]} Rh6+ {[%emt 0:01:44]} 36. Kg4 {[%emt 0:00:10]}
Rg6 {[%emt 0:00:23]} 37. Kh3 {[%emt 0:00:38]} 1/2-1/2

[Event "I Liga Centralne Srbije"]
[Site "Bajina Bašta, Serbia"]
[Date "2020.10.10"]
[Round "1.1"]
[White "Perunovic, Miodrag"]
[Black "Markovic, Miroslav"]
[Result "1/2-1/2"]
[ECO "B11"]
[WhiteElo "2440"]
[BlackElo "2372"]
[Annotator "Knez"]
[PlyCount "60"]
[EventDate "2020.??.??"]
[TimeControl "90"]

1. e4 {[%emt 2:14:11]} c6 {[%emt 0:00:33]} 2. Nc3 {[%emt 0:00:17]} d5 {[%emt 0:
00:52]} 3. Nf3 {[%emt 0:00:07]} Bg4 {[%emt 0:03:47]} 4. h3 {[%emt 0:00:08]}
Bxf3 {[%emt 0:00:19]} 5. Qxf3 {[%emt 0:00:08]} e6 {[%emt 0:00:11]} 6. d3 {
[%emt 0:00:07]} Nd7 {[%emt 0:00:57]} 7. Bd2 {[%emt 0:00:07]} Ngf6 {[%emt 0:00:
31]} 8. O-O-O {[%emt 0:00:16]} Bb4 {[%emt 0:00:36]} 9. g4 {[%emt 0:05:04]} d4 {
[%emt 0:05:05]} 10. Nb1 {[%emt 0:04:10]} Qa5 {[%emt 0:04:26]} 11. Bxb4 {
[%emt 0:04:13]} Qxb4 {[%emt 0:01:36]} 12. g5 {[%emt 0:00:06]} Ng8 {[%emt 0:00:
10]} 13. h4 {[%emt 0:03:32]} Ne7 {[%emt 0:00:31]} 14. Bh3 {[%emt 0:01:25]} h6 {
[%emt 0:02:15]} 15. Nd2 {[%emt 0:05:25]} hxg5 {[%emt 0:00:29]} 16. hxg5 {
[%emt 0:00:02]} Ng6 {[%emt 0:00:40]} 17. Qg3 {[%emt 0:04:14]} Qa5 {[%emt 0:00:
14]} 18. Nc4 {[%emt 0:14:37]} Qxa2 {[%emt 0:00:18]} 19. Qc7 {[%emt 0:01:02]}
Rd8 {[%emt 0:07:28]} 20. Kd2 {[%emt 0:05:41]} Qa4 {[%emt 0:02:49]} 21. c3 {
[%emt 0:05:14]} dxc3+ {[%emt 0:04:28]} 22. bxc3 {[%emt 0:00:02]} O-O {[%emt 0:
00:30]} 23. Ra1 {[%emt 0:03:32]} Qb5 {[%emt 0:00:10]} 24. Ra5 {[%emt 0:00:14]}
Qb3 {[%emt 0:00:19]} 25. Ra3 {[%emt 0:17:34]} Qb5 {[%emt 0:00:07]} 26. Ra5 {
[%emt 0:00:16]} Qb3 {[%emt 0:00:10]} 27. Ra3 {[%emt 0:00:45]} Qb5 {[%emt 0:00:
03]} 28. Ra5 {[%emt 0:00:06]} Qb3 29. Bf5 {[%emt 0:00:01]} Nb6 {[%emt 0:00:01]}
30. Bh3 {[%emt 0:00:11]} Nd7 {[%emt 0:00:18]} 1/2-1/2

[Event "I Liga Centralne Srbije"]
[Site "Bajina Bašta, Serbia"]
[Date "2020.10.10"]
[Round "1.1"]
[White "Savic, Miodrag R"]
[Black "Pavlovic, Dejan S"]
[Result "1-0"]
[ECO "B22"]
[WhiteElo "2433"]
[BlackElo "2390"]
[Annotator "Knez"]
[PlyCount "115"]
[EventDate "2020.??.??"]
[TimeControl "90"]
[WhiteClock "1:30:29"]
[BlackClock "1:30:46"]

1. e4 {[%emt 0:00:12]} c5 2. c3 Nf6 3. e5 Nd5 4. g3 Nc6 5. Bg2 e6 6. Nf3 d6 7.
exd6 Bxd6 8. d4 O-O 9. O-O h6 10. dxc5 Bxc5 11. Qe2 Qc7 12. Nbd2 Rd8 13. Nb3
Be7 14. Rd1 Bd7 15. c4 Nf6 16. Bf4 Qb6 17. Rac1 Be8 18. Be3 Qc7 19. Nfd4 Nxd4
20. Nxd4 a6 21. a3 Rd7 22. b4 Rad8 23. Rd2 {[%emt 0:00:00]} a5 {[%emt 0:00:00]}
24. Nb5 {[%emt 0:00:00]} Rxd2 {[%emt 0:00:00]} 25. Bxd2 {[%emt 0:00:00]} Bxb5 {
[%emt 0:00:00]} 26. cxb5 {[%emt 0:00:00]} Qd7 {[%emt 0:00:00]} 27. Be1 {
[%emt 0:00:00]} axb4 {[%emt 0:00:00]} 28. axb4 {[%emt 0:00:00]} Nd5 {[%emt 0:
00:00]} 29. Qc4 {[%emt 0:00:00]} Bg5 {[%emt 0:00:00]} 30. Rc2 {[%emt 0:00:00]}
Qd6 {[%emt 0:00:00]} 31. Bf3 {[%emt 0:00:00]} Qe5 {[%emt 0:00:00]} 32. Re2 {
[%emt 0:00:00]} Qd6 {[%emt 0:00:00]} 33. Qc5 {[%emt 0:00:00]} Qd7 {[%emt 0:00:
00]} 34. Rc2 {[%emt 0:00:00]} Ra8 {[%emt 0:00:00]} 35. Kg2 {[%emt 0:00:00]} g6
{[%emt 0:00:00]} 36. Bxd5 {[%emt 0:00:00]} Qxd5+ {[%emt 0:00:00]} 37. Qxd5 {
[%emt 0:00:00]} exd5 {[%emt 0:00:00]} 38. Rc7 {[%emt 0:00:00]} b6 {[%emt 0:00:
00]} 39. Bc3 {[%emt 0:00:00]} Kf8 {[%emt 0:00:00]} 40. Bd4 {[%emt 0:00:00]} Ke8
{[%emt 0:00:00]} 41. Bxb6 {[%emt 0:00:00]} Rb8 {[%emt 0:00:00]} 42. Rc6 {
[%emt 0:00:00]} Be7 {[%emt 0:00:00]} 43. Kf3 {[%emt 0:00:00]} Bxb4 {[%emt 0:00:
00]} 44. Kf4 {[%emt 0:00:00]} d4 {[%emt 0:00:00]} 45. Ke4 {[%emt 0:00:00]} Be1
{[%emt 0:00:00]} 46. f3 {[%emt 0:00:00]} Kd7 {[%emt 0:00:00]} 47. Rc7+ {
[%emt 0:00:00]} Ke6 {[%emt 0:00:00]} 48. Rc6+ {[%emt 0:00:00]} Kd7 {[%emt 0:00:
00]} 49. Kd3 {[%emt 0:00:00]} Bf2 {[%emt 0:00:00]} 50. Kc4 {[%emt 0:00:00]} Bg1
{[%emt 0:00:00]} 51. h3 {[%emt 0:00:00]} d3 {[%emt 0:00:00]} 52. Bc5 {[%emt 0:
00:00]} Bh2 {[%emt 0:00:00]} 53. Rd6+ {[%emt 0:00:00]} Kc7 {[%emt 0:00:00]} 54.
b6+ {[%emt 0:00:00]} Kc8 {[%emt 0:00:00]} 55. Rxd3 {[%emt 0:00:00]} Bxg3 {
[%emt 0:00:00]} 56. Kb5 {[%emt 0:00:00]} Bf4 {[%emt 0:00:00]} 57. Kc6 {[%emt 0:
00:00]} g5 {[%emt 0:00:00]} 58. Be7 {[%emt 0:00:00]} 1-0

[Event "I Liga Centralne Srbije"]
[Site "Bajina Bašta, Serbia"]
[Date "2020.10.10"]
[Round "1.1"]
[White "Radovanovic, Dusan"]
[Black "Todorovic, Goran M"]
[Result "0-1"]
[ECO "E94"]
[WhiteElo "2326"]
[BlackElo "2404"]
[Annotator "Knez"]
[PlyCount "53"]
[EventDate "2020.??.??"]
[TimeControl "90"]
[WhiteClock "0:03:59"]
[BlackClock "0:54:06"]

1. d4 {[%emt 0:00:00]} Nf6 {[%emt 0:00:00]} 2. c4 {[%emt 0:00:00]} g6 {[%emt 0:
00:00]} 3. Nc3 {[%emt 0:00:00]} Bg7 {[%emt 0:00:00]} 4. e4 {[%emt 0:00:00]} d6
{[%emt 0:00:00]} 5. Nf3 {[%emt 0:00:00]} O-O {[%emt 0:00:00]} 6. Be2 {[%emt 0:
00:00]} e5 {[%emt 0:00:00]} 7. O-O {[%emt 0:00:00]} exd4 {[%emt 0:00:00]} 8.
Nxd4 {[%emt 0:00:00]} Re8 {[%emt 0:00:00]} 9. f3 {[%emt 0:00:00]} c6 {[%emt 0:
00:00]} 10. Kh1 {[%emt 0:00:00]} Nbd7 {[%emt 0:00:00]} 11. Nc2 {[%emt 0:00:00]}
Nb6 {[%emt 0:00:00]} 12. a4 {[%emt 0:00:00]} Be6 {[%emt 0:00:00]} 13. Ne3 {
[%emt 0:00:00]} a5 {[%emt 0:00:00]} 14. f4 {[%emt 0:00:00]} Qc7 {[%emt 0:00:00]
} 15. Ra3 {[%emt 0:00:00]} Rad8 {[%emt 0:00:00]} 16. Qe1 {[%emt 0:00:00]} Bc8 {
[%emt 0:00:00]} 17. c5 {[%emt 0:00:00]} dxc5 {[%emt 0:00:00]} 18. e5 {[%emt 0:
00:00]} Nfd5 {[%emt 0:00:00]} 19. Ne4 {[%emt 0:00:00]} f6 {[%emt 0:00:00]} 20.
Qh4 {[%emt 0:00:00]} fxe5 {[%emt 0:00:00]} 21. f5 {[%emt 0:00:00]} Bxf5 {
[%emt 0:00:00]} 22. Nxf5 {[%emt 0:00:00]} gxf5 {[%emt 0:00:00]} 23. Rh3 {
[%emt 0:00:00]} Bh8 {[%emt 0:00:00]} 24. Rxf5 {[%emt 0:00:00]} Rd7 {[%emt 0:00:
00]} 25. Rg5+ {[%emt 0:00:00]} Kf8 {[%emt 0:00:00]} 26. Rf3+ {[%emt 0:00:00]}
Rf7 {[%emt 0:00:00]} 27. Qh6+ {[%emt 0:00:00]} 0-1

[Event "I Liga Centralne Srbije"]
[Site "Bajina Bašta, Serbia"]
[Date "2020.10.10"]
[Round "1.1"]
[White "Radovanovic, Jovica"]
[Black "Radivojevic, Ivan"]
[Result "1/2-1/2"]
[ECO "E11"]
[WhiteElo "2303"]
[BlackElo "2365"]
[Annotator "Knez"]
[PlyCount "120"]
[EventDate "2020.??.??"]
[TimeControl "90"]
[WhiteClock "0:05:16"]
[BlackClock "0:00:38"]

1. d4 {[%emt 0:00:00]} Nf6 {[%emt 0:00:00]} 2. Nf3 {[%emt 0:00:00]} e6 {
[%emt 0:00:00]} 3. c4 {[%emt 0:00:00]} Bb4+ {[%emt 0:00:00]} 4. Bd2 {[%emt 0:
00:00]} Qe7 {[%emt 0:00:00]} 5. g3 {[%emt 0:00:00]} O-O {[%emt 0:00:00]} 6. Bg2
{[%emt 0:00:00]} Bxd2+ {[%emt 0:00:00]} 7. Qxd2 {[%emt 0:00:00]} d6 {[%emt 0:
00:00]} 8. O-O {[%emt 0:00:00]} e5 {[%emt 0:00:00]} 9. Nc3 {[%emt 0:00:00]} Re8
{[%emt 0:00:00]} 10. Qc2 {[%emt 0:00:00]} c6 {[%emt 0:00:00]} 11. e3 {[%emt 0:
00:00]} Qc7 {[%emt 0:00:00]} 12. Rac1 {[%emt 0:00:00]} Nbd7 {[%emt 0:00:00]}
13. Rfd1 {[%emt 0:00:00]} Nf8 {[%emt 0:00:00]} 14. h3 {[%emt 0:00:00]} h6 {
[%emt 0:00:00]} 15. a3 {[%emt 0:00:00]} Bd7 {[%emt 0:00:00]} 16. b4 {[%emt 0:
00:00]} Rad8 {[%emt 0:00:00]} 17. dxe5 {[%emt 0:00:00]} dxe5 {[%emt 0:00:00]}
18. Nd2 {[%emt 0:00:00]} Qc8 {[%emt 0:00:00]} 19. Nde4 {[%emt 0:00:00]} Nxe4 {
[%emt 0:00:00]} 20. Nxe4 {[%emt 0:00:02]} Bf5 {[%emt 0:00:34]} 21. Kh2 {
[%emt 0:00:00]} Bxe4 {[%emt 0:00:00]} 22. Bxe4 {[%emt 0:00:00]} Rxd1 23. Rxd1 {
[%emt 0:00:00]} Rd8 {[%emt 0:00:00]} 24. Bf5 {[%emt 0:00:00]} Qc7 {[%emt 0:00:
00]} 25. c5 {[%emt 0:00:00]} g6 {[%emt 0:00:00]} 26. Be4 {[%emt 0:00:00]} h5 {
[%emt 0:00:00]} 27. Rxd8 {[%emt 0:00:00]} Qxd8 {[%emt 0:00:00]} 28. b5 {
[%emt 0:00:00]} Qe7 {[%emt 0:00:00]} 29. bxc6 {[%emt 0:00:00]} bxc6 {[%emt 0:
00:00]} 30. Bxc6 {[%emt 0:00:00]} Ne6 {[%emt 0:00:00]} 31. Bd5 {[%emt 0:00:00]}
Qxc5 {[%emt 0:00:00]} 32. Qb3 {[%emt 0:00:00]} Qd6 {[%emt 0:00:00]} 33. Kg2 {
[%emt 0:00:00]} Kg7 {[%emt 0:00:00]} 34. Bxe6 {[%emt 0:00:00]} fxe6 {[%emt 0:
00:00]} 35. Qb7+ {[%emt 0:00:00]} Kf6 {[%emt 0:00:00]} 36. Qxa7 {[%emt 0:00:00]
} Qd5+ {[%emt 0:00:00]} 37. Kh2 {[%emt 0:00:00]} Qf3 {[%emt 0:00:00]} 38. Kg1 {
[%emt 0:00:00]} Qd1+ {[%emt 0:00:00]} 39. Kg2 {[%emt 0:00:00]} Qd5+ {[%emt 0:
00:00]} 40. Kh2 {[%emt 0:00:00]} Qf3 {[%emt 0:00:00]} 41. e4 {[%emt 0:00:00]}
h4 {[%emt 0:00:00]} 42. gxh4 {[%emt 0:00:00]} Qxe4 {[%emt 0:00:00]} 43. Qe3 {
[%emt 0:00:00]} Qxh4 {[%emt 0:00:00]} 44. Qf3+ {[%emt 0:00:00]} Kg7 {[%emt 0:
00:00]} 45. Qe3 {[%emt 0:00:00]} Kf6 {[%emt 0:00:00]} 46. Kg2 {[%emt 0:00:00]}
Qc4 {[%emt 0:00:00]} 47. Qf3+ {[%emt 0:00:00]} Kg7 {[%emt 0:00:00]} 48. Kg3 {
[%emt 0:00:00]} Qd4 {[%emt 0:00:00]} 49. Qe3 {[%emt 0:00:00]} Qa1 {[%emt 0:00:
00]} 50. Kg2 {[%emt 0:00:00]} Kh7 {[%emt 0:00:00]} 51. h4 {[%emt 0:00:00]} Qa2
{[%emt 0:00:00]} 52. Qf3 {[%emt 0:00:00]} Qc4 {[%emt 0:00:00]} 53. h5 {[%emt 0:
00:00]} Kh6 {[%emt 0:00:00]} 54. hxg6 {[%emt 0:00:00]} Kxg6 {[%emt 0:00:00]}
55. Kg3 {[%emt 0:00:00]} Kg5 {[%emt 0:00:00]} 56. Qe3+ {[%emt 0:00:00]} Kf5 {
[%emt 0:00:00]} 57. f3 {[%emt 0:00:00]} Qc2 {[%emt 0:00:00]} 58. Qa7 {[%emt 0:
00:00]} e4 {[%emt 0:00:00]} 59. Qh7+ {[%emt 0:00:24]} Ke5 {[%emt 0:00:00]} 60.
Qxe4+ {[%emt 0:00:26]} Qxe4 {[%emt 0:00:00]} 1/2-1/2

[Event "I Liga Centralne Srbije"]
[Site "Bajina Bašta, Serbia"]
[Date "2020.10.10"]
[Round "1.5"]
[White "Kojovic, Dragan"]
[Black "Celik, Hasan Huseyin"]
[Result "1-0"]
[ECO "D10"]
[WhiteElo "2307"]
[BlackElo "1970"]
[Annotator "Knez"]
[PlyCount "85"]
[EventDate "2020.??.??"]
[TimeControl "90"]
[WhiteClock "0:02:05"]
[BlackClock "0:14:56"]

1. d4 {[%emt 0:00:00]} d5 {[%emt 0:00:00]} 2. c4 {[%emt 0:00:00]} c6 {[%emt 0:
00:00]} 3. cxd5 {[%emt 0:00:00]} cxd5 {[%emt 0:00:00]} 4. Nc3 {[%emt 0:00:00]}
Nc6 {[%emt 0:00:00]} 5. Bf4 {[%emt 0:00:00]} Nf6 {[%emt 0:00:00]} 6. e3 {
[%emt 0:00:00]} Bf5 {[%emt 0:00:00]} 7. Qb3 {[%emt 0:00:00]} Na5 {[%emt 0:00:
00]} 8. Bb5+ {[%emt 0:00:00]} Bd7 {[%emt 0:00:00]} 9. Qa4 {[%emt 0:00:00]} Nc6
{[%emt 0:00:00]} 10. Nf3 {[%emt 0:00:00]} a6 {[%emt 0:00:00]} 11. Bxc6 {
[%emt 0:00:00]} Bxc6 {[%emt 0:00:00]} 12. Qb3 {[%emt 0:00:00]} e6 {[%emt 0:00:
00]} 13. O-O {[%emt 0:00:00]} Nd7 {[%emt 0:00:00]} 14. Ne5 {[%emt 0:00:00]}
Nxe5 {[%emt 0:00:00]} 15. Bxe5 {[%emt 0:00:00]} Bd6 {[%emt 0:00:00]} 16. Bxd6 {
[%emt 0:00:00]} Qxd6 {[%emt 0:00:00]} 17. f4 {[%emt 0:00:00]} f5 {[%emt 0:00:
00]} 18. a3 {[%emt 0:00:00]} O-O {[%emt 0:00:00]} 19. Rf2 {[%emt 0:00:00]} Rf7
{[%emt 0:00:00]} 20. Rc1 {[%emt 0:00:00]} Be8 {[%emt 0:00:00]} 21. Nb1 {
[%emt 0:00:00]} Rc7 {[%emt 0:00:00]} 22. Rxc7 {[%emt 0:00:00]} Qxc7 {[%emt 0:
00:00]} 23. Rc2 {[%emt 0:00:00]} Bc6 {[%emt 0:00:00]} 24. Qb4 {[%emt 0:00:00]}
Rc8 {[%emt 0:00:00]} 25. Nd2 {[%emt 0:00:00]} Qd8 {[%emt 0:00:00]} 26. Nf3 {
[%emt 0:00:00]} Bb5 {[%emt 0:00:00]} 27. Rxc8 {[%emt 0:00:00]} Qxc8 {[%emt 0:
00:00]} 28. Qc5 {[%emt 0:00:00]} Qd8 {[%emt 0:00:00]} 29. b3 {[%emt 0:00:00]}
h6 {[%emt 0:00:00]} 30. Qc2 {[%emt 0:00:00]} Kh7 {[%emt 0:00:00]} 31. a4 {
[%emt 0:00:00]} Be8 {[%emt 0:00:00]} 32. h3 {[%emt 0:00:00]} b5 {[%emt 0:00:00]
} 33. axb5 {[%emt 0:00:00]} Bxb5 {[%emt 0:00:00]} 34. g4 {[%emt 0:00:00]} Qf6 {
[%emt 0:00:00]} 35. h4 {[%emt 0:00:00]} Kg8 {[%emt 0:00:00]} 36. Qc8+ {[%emt 0:
00:00]} Kh7 {[%emt 0:00:00]} 37. g5 {[%emt 0:00:00]} Qe7 {[%emt 0:00:00]} 38.
h5 {[%emt 0:00:00]} Be8 {[%emt 0:00:00]} 39. g6+ {[%emt 0:00:00]} Kg8 {[%emt 0:
00:00]} 40. Qxa6 {[%emt 0:00:00]} Kf8 {[%emt 0:00:00]} 41. Qb6 {[%emt 0:00:00]}
Qf6 {[%emt 0:00:00]} 42. Qd6+ {[%emt 0:00:00]} Kg8 {[%emt 0:00:00]} 43. Kf2 {
[%emt 0:00:00]} 1-0

[Event "I Liga Centralne Srbije"]
[Site "Bajina Bašta, Serbia"]
[Date "2020.10.10"]
[Round "1.5"]
[White "Irizanin, Radoje"]
[Black "Ostojic, Nikola"]
[Result "1/2-1/2"]
[ECO "A36"]
[WhiteElo "2331"]
[BlackElo "2406"]
[Annotator "Knez"]
[PlyCount "55"]
[EventDate "2020.??.??"]
[TimeControl "90"]
[WhiteClock "0:29:51"]
[BlackClock "0:50:11"]

1. c4 {[%emt 0:00:00]} g6 {[%emt 0:00:00]} 2. g3 {[%emt 0:00:00]} Bg7 {[%emt 0:
00:00]} 3. Bg2 {[%emt 0:00:00]} d6 {[%emt 0:00:00]} 4. Nc3 {[%emt 0:00:00]} Nf6
{[%emt 0:00:00]} 5. e4 {[%emt 0:00:00]} c5 {[%emt 0:00:00]} 6. Nge2 {[%emt 0:
00:00]} Nc6 {[%emt 0:00:00]} 7. O-O {[%emt 0:00:00]} O-O {[%emt 0:00:00]} 8. d3
{[%emt 0:00:00]} Rb8 {[%emt 0:00:00]} 9. h3 {[%emt 0:00:00]} Ne8 {[%emt 0:00:
00]} 10. Be3 {[%emt 0:00:00]} Nc7 {[%emt 0:00:00]} 11. d4 {[%emt 0:00:00]} cxd4
{[%emt 0:00:00]} 12. Nxd4 {[%emt 0:00:00]} a6 {[%emt 0:00:00]} 13. a4 {[%emt 0:
00:00]} Ne6 {[%emt 0:00:00]} 14. Nde2 {[%emt 0:00:00]} Nc5 {[%emt 0:00:00]} 15.
Rb1 {[%emt 0:00:00]} f5 {[%emt 0:00:00]} 16. Kh2 Kh8 {[%emt 0:00:00]} 17. b3 e5
{[%emt 0:00:00]} 18. Qd2 f4 {[%emt 0:00:00]} 19. Bxc5 dxc5 {[%emt 0:00:00]} 20.
Qxd8 Rxd8 {[%emt 0:00:00]} 21. Nd5 fxg3+ {[%emt 0:00:00]} 22. fxg3 Be6 {
[%emt 0:00:00]} 23. h4 Bg8 {[%emt 0:00:00]} 24. Nec3 Bh6 {[%emt 0:00:00]} 25.
Nf6 Rd2 {[%emt 0:00:00]} 26. Nxg8 Kxg8 {[%emt 0:00:00]} 27. Nd5 Rf8 {[%emt 0:
00:00]} 28. Kh1 1/2-1/2

[Event "I Liga Centralne Srbije"]
[Site "Bajina Bašta, Serbia"]
[Date "2020.10.10"]
[Round "1.5"]
[White "Solomunovic, Igor"]
[Black "Marinkovic, Ivan"]
[Result "1/2-1/2"]
[ECO "B04"]
[WhiteElo "2355"]
[BlackElo "2451"]
[Annotator "Knez"]
[PlyCount "21"]
[EventDate "2020.??.??"]
[TimeControl "90"]
[WhiteClock "1:30:42"]
[BlackClock "1:30:53"]

1. e4 {[%emt 0:00:00]} Nf6 {[%emt 0:00:00]} 2. e5 {[%emt 0:00:00]} Nd5 {
[%emt 0:00:00]} 3. d4 {[%emt 0:00:00]} d6 {[%emt 0:00:00]} 4. Nf3 {[%emt 0:00:
00]} dxe5 {[%emt 0:00:00]} 5. Nxe5 {[%emt 0:00:00]} g6 {[%emt 0:00:00]} 6. Bc4
{[%emt 0:00:00]} c6 {[%emt 0:00:00]} 7. O-O {[%emt 0:00:00]} Bg7 {[%emt 0:00:
00]} 8. Nd2 {[%emt 0:00:00]} Nd7 {[%emt 0:00:00]} 9. Nxd7 {[%emt 0:00:00]} Bxd7
{[%emt 0:00:00]} 10. Nf3 {[%emt 0:00:00]} Bg4 {[%emt 0:00:00]} 11. c3 {[%emt 0:
00:00]} 1/2-1/2

[Event "I Liga Centralne Srbije"]
[Site "Bajina Bašta, Serbia"]
[Date "2020.10.10"]
[Round "1.5"]
[White "Novoselski, Zoran"]
[Black "Rabrenovic, Vladan"]
[Result "1/2-1/2"]
[ECO "B43"]
[WhiteElo "2318"]
[BlackElo "2302"]
[Annotator "Knez"]
[PlyCount "120"]
[EventDate "2020.??.??"]
[TimeControl "90"]
[WhiteClock "0:03:00"]
[BlackClock "0:02:34"]

1. e4 {[%emt 0:00:00]} c5 {[%emt 0:00:00]} 2. Nc3 {[%emt 0:00:00]} e6 {[%emt 0:
00:00]} 3. Nf3 {[%emt 0:00:00]} a6 {[%emt 0:00:00]} 4. g3 {[%emt 0:00:00]} b5 {
[%emt 0:00:00]} 5. Bg2 {[%emt 0:00:00]} Bb7 {[%emt 0:00:00]} 6. d4 {[%emt 0:00:
00]} cxd4 {[%emt 0:00:00]} 7. Nxd4 {[%emt 0:00:00]} b4 {[%emt 0:00:00]} 8. Na4
{[%emt 0:00:00]} Nf6 {[%emt 0:00:00]} 9. Qe2 {[%emt 0:00:00]} Qa5 {[%emt 0:00:
00]} 10. b3 {[%emt 0:00:00]} Nc6 {[%emt 0:00:00]} 11. Bb2 {[%emt 0:00:00]} Nxd4
{[%emt 0:00:00]} 12. Bxd4 {[%emt 0:00:00]} e5 {[%emt 0:00:00]} 13. Be3 {
[%emt 0:00:00]} Be7 {[%emt 0:00:00]} 14. Rd1 {[%emt 0:00:00]} Qc7 {[%emt 0:00:
00]} 15. Nb6 {[%emt 0:00:00]} Rb8 {[%emt 0:00:00]} 16. Nd5 {[%emt 0:00:00]}
Nxd5 {[%emt 0:00:00]} 17. exd5 {[%emt 0:00:00]} d6 {[%emt 0:00:00]} 18. Be4 {
[%emt 0:00:00]} O-O {[%emt 0:00:00]} 19. g4 {[%emt 0:00:00]} Bc8 {[%emt 0:00:
00]} 20. Rg1 {[%emt 0:00:00]} Bh4 {[%emt 0:00:00]} 21. Rd3 {[%emt 0:00:00]} Qe7
{[%emt 0:00:00]} 22. Bd2 {[%emt 0:00:00]} Bg5 {[%emt 0:00:00]} 23. h4 {[%emt 0:
00:00]} Bxd2+ {[%emt 0:00:00]} 24. Qxd2 {[%emt 0:00:00]} f5 {[%emt 0:00:00]}
25. gxf5 {[%emt 0:00:00]} Bxf5 {[%emt 0:00:00]} 26. Bxf5 {[%emt 0:00:00]} Rxf5
{[%emt 0:00:00]} 27. Rg4 {[%emt 0:00:00]} Rf4 {[%emt 0:00:00]} 28. Rdg3 {
[%emt 0:00:00]} Rbf8 {[%emt 0:00:00]} 29. Qe2 {[%emt 0:00:00]} a5 {[%emt 0:00:
00]} 30. h5 {[%emt 0:00:00]} R8f7 {[%emt 0:00:00]} 31. h6 {[%emt 0:00:00]} g6 {
[%emt 0:00:00]} 32. Rxf4 {[%emt 0:00:00]} exf4 {[%emt 0:00:00]} 33. Rh3 {
[%emt 0:00:00]} Qxe2+ {[%emt 0:00:00]} 34. Kxe2 {[%emt 0:00:00]} Rc7 {[%emt 0:
00:00]} 35. Kd2 {[%emt 0:00:00]} Rc5 {[%emt 0:00:00]} 36. c4 {[%emt 0:00:00]}
bxc3+ {[%emt 0:00:02]} 37. Rxc3 {[%emt 0:00:00]} Rxd5+ {[%emt 0:00:00]} 38. Rd3
{[%emt 0:00:00]} Rb5 {[%emt 0:00:19]} 39. Rxd6 {[%emt 0:00:00]} g5 {[%emt 0:00:
00]} 40. Rd7 {[%emt 0:00:00]} a4 {[%emt 0:00:07]} 41. Kc3 {[%emt 0:00:00]} axb3
{[%emt 0:00:00]} 42. axb3 {[%emt 0:00:00]} Rb6 {[%emt 0:00:00]} 43. Rg7+ {
[%emt 0:00:00]} Kh8 {[%emt 0:00:00]} 44. Rxg5 {[%emt 0:00:00]} Rxh6 {[%emt 0:
00:00]} 45. b4 {[%emt 0:00:00]} Rh3+ {[%emt 0:00:24]} 46. Kd4 {[%emt 0:00:00]}
Rf3 {[%emt 0:00:00]} 47. Rg2 {[%emt 0:00:00]} h5 {[%emt 0:00:00]} 48. b5 {
[%emt 0:00:00]} Kh7 {[%emt 0:00:00]} 49. Kc4 {[%emt 0:00:00]} Ra3 {[%emt 0:00:
00]} 50. b6 {[%emt 0:00:00]} Ra2 {[%emt 0:00:00]} 51. Rg5 {[%emt 0:00:00]} Kh6
{[%emt 0:00:00]} 52. Rb5 {[%emt 0:00:00]} Ra8 {[%emt 0:00:00]} 53. b7 {[%emt 0:
00:00]} Rb8 {[%emt 0:00:00]} 54. Kd4 {[%emt 0:00:00]} h4 {[%emt 0:00:00]} 55.
Ke4 {[%emt 0:00:00]} h3 {[%emt 0:00:00]} 56. Kf3 {[%emt 0:00:00]} Kg6 {[%emt 0:
00:00]} 57. Kg4 {[%emt 0:00:00]} h2 {[%emt 0:00:00]} 58. Rg5+ {[%emt 0:00:00]}
Kf6 {[%emt 0:00:00]} 59. Rh5 {[%emt 0:00:00]} Rxb7 {[%emt 0:00:00]} 60. Kxf4 {
[%emt 0:00:00]} Rb4+ {[%emt 0:00:00]} 1/2-1/2

[Event "I Liga Centralne Srbije"]
[Site "Bajina Bašta, Serbia"]
[Date "2020.10.10"]
[Round "1.5"]
[White "Roljevic, Djordje"]
[Black "Mijatovic, Dusan"]
[Result "0-1"]
[ECO "D00"]
[WhiteElo "2177"]
[BlackElo "2177"]
[Annotator "Knez"]
[PlyCount "26"]
[EventDate "2020.??.??"]
[TimeControl "90"]
[WhiteClock "0:58:57"]
[BlackClock "0:51:54"]

1. d4 {[%emt 0:00:00]} Nf6 {[%emt 0:00:00]} 2. Bg5 {[%emt 0:00:00]} d5 {
[%emt 0:00:00]} 3. e3 {[%emt 0:00:00]} Nbd7 {[%emt 0:00:00]} 4. c4 {[%emt 0:00:
00]} Ne4 {[%emt 0:00:00]} 5. Bf4 {[%emt 0:00:00]} e5 {[%emt 0:00:00]} 6. dxe5 {
[%emt 0:00:00]} Bb4+ {[%emt 0:00:00]} 7. Ke2 {[%emt 0:00:00]} Qh4 {[%emt 0:00:
00]} 8. g3 {[%emt 0:00:00]} Qh5+ {[%emt 0:00:00]} 9. f3 {[%emt 0:00:00]} g5 {
[%emt 0:00:00]} 10. Qxd5 {[%emt 0:00:00]} Ndc5 {[%emt 0:00:00]} 11. g4 {
[%emt 0:00:00]} Qh4 {[%emt 0:00:00]} 12. fxe4 {[%emt 0:00:00]} Bxg4+ {[%emt 0:
00:00]} 13. Nf3 {[%emt 0:00:00]} Qe1# {[%emt 0:01:00]} 0-1